Workbook

Sheet Section A - P&G's
I1: GENERAL BUILDING & ELECTRICAL WORKS MAINTENANCE IN GORT VARIOUS SITE
I2: BOQ
I3: COC, CSCs, SCs AND DALPARK
A5: SECTION A - PRELIMINARIES AND GENERAL
A7: ITEM No. | B7: PAYMENT CLAUSE | C7: DESCRIPTION | D7: UNIT | E7: QUANTITY | F7: CONTRACT SUM | H7: TOTAL TO DATE | J7: COMMENTS
F8: RATE | G8: AMOUNT R c | H8: QUANTITY | I8: AMOUNT R c
C9: SECTION A
C10: BILL NO. 1
C12: PRELIMINARIES AND GENERALS
C14: SUPPLIMENTARY PREAMBLES
C16: For Preambles, see "Model Preambles for Trades (2008 Edition) and Supplementary Preambles as specified in the Trades.
C18: Items supplied by the Company
C20: Where in the description of an item, the phrase "Provided by the Company" appears, shall mean that ETC will provide such service free of charge to the Service Provider. Nonetheless, the Service Provider can price such items to include items which he deems necessary following his/her site inspection.
C22: The Company will provide the successful Service Provider with the following, free of charge to the Service Provider:
C23: 1. Office space
C24: 2. Temporary workshop
C25: 3. Storage facility
C26: 4. Office furniture
C27: 5. Office printer
C28: 6. Email domain set-up
C29: 7. Office landline (to be used for Project calls, any calls recorded to be off-project business to be recovered from the Service Provider)
C30: 8. Office Desktops and Laptops (Service provider to supply and install their own server)
C31: 9. Water, Electricity and ablution facilities
C32: Notwithstanding any items listed in the bill items below, it is the Service Provider's responsibility to acquaint himself with the conditions of the sites and include any relevant items not listed in this Bill of Quantity as any additional claims will not be entertained, unless otherwise agreed.
C33: The Security item has been included in this Bill of Quantity for the purpose where the Service Provider has noticed the Company of any security threats on any of our sites and approved by the Company to deploy the security to be of a risk will it be certified for payment.
C34: Unless otherwise stated, the tenderer's rates to include profit and all overhead costs.
C36: FIXED CHARGE ITEMS
C38: Contractual obligations
A40: A1 | C40: Surety Bond | D40: Sum | E40: 1 | G40: =$E40*F40 -> 0.00 | I40: =$F40*H40 -> 0.00 | J40: Agreed, not applicable
A42: A2 | C42: Retention | D42: Sum | E42: 1 | G42: =$E42*F42 -> 0.00 | I42: =$F42*H42 -> 0.00 | J42: Agreed, not applicable
A44: A3 | C44: Alternative Retention Bond in lieu of Retention | D44: Sum | E44: 1 | G44: =$E44*F44 -> 0.00 | I44: =$F44*H44 -> 0.00 | J44: Agreed, not applicable
A46: A4 | C46: Warranty | D46: Sum | E46: 1 | G46: =$E46*F46 -> 0.00 | I46: =$F46*H46 -> 0.00 | J46: Agreed, to be only under time related
A48: A5 | C48: Taxes, duties, permits | D48: Sum | E48: 1 | G48: =$E48*F48 -> 0.00 | I48: =$F48*H48 -> 0.00 | J48: Agreed, to be only under time related
A50: A6 | C50: Programming | D50: Sum | E50: 1 | G50: =$E50*F50 -> 0.00 | I50: =$F50*H50 -> 0.00 | J50: Agreed, not applicable
A52: A7 | C52: Other obligations (please list detail) | D52: Sum | E52: 1 | F52: 0 | G52: =$E52*F52 -> 0.00 | I52: =$F52*H52 -> 0.00 | J52: N/A
F53: 0
C54: Establishment and di-establishment of facilities on site | F54: 0
F55: 0
C56: Facilities for the Contractor | F56: 0
F57: 0
A58: A8 | C58: Site Offices (provided by the Company) | D58: Sum | E58: 1 | F58: 5,425.00 | G58: =$E58*F58 -> 5,425.00 | I58: =$F58*H58 -> 0.00 | J58: ICT Infrastructure Set-up (preparatory work)
F59: 0
A60: A9 | C60: Workshop (space provided by the Company) | D60: Sum | E60: 1 | F60: 0 | G60: =$E60*F60 -> 0.00 | I60: =$F60*H60 -> 0.00 | J60: Not applicable
F61: 0
A62: A10 | C62: Ablution facilities (Provided by the Company) | D62: Sum | E62: 1 | F62: 0 | G62: =$E62*F62 -> 0.00 | I62: =$F62*H62 -> 0.00 | J62: Not applicable
F63: 0
A64: A11 | C64: Storage facilities (Provided by the Company) | D64: Sum | E64: 1 | F64: 0 | G64: =$E64*F64 -> 0.00 | I64: =$F64*H64 -> 0.00 | J64: Not applicable
F65: 0
A66: A12 | C66: Water supply (Provided by the Company) | D66: Sum | E66: 1 | F66: 0 | G66: =$E66*F66 -> 0.00 | I66: =$F66*H66 -> 0.00 | J66: Not applicable
F67: 0
A68: A13 | C68: Electrical supply (provided by the Company) | D68: Sum | E68: 1 | F68: 0 | G68: =$E68*F68 -> 0.00 | I68: =$F68*H68 -> 0.00 | J68: Not applicable
F69: 0
A70: A14 | C70: Communications (Office Telephones, email domain, desk and laptops provided by the Company, excluding mobile devices) | D70: Sum | E70: 1 | F70: 0 | G70: =$E70*F70 -> 0.00 | I70: =$F70*H70 -> 0.00 | J70: 3 X Laptops, Software, & Configuration
F71: 0
A72: A15 | C72: Training of administration staff for Hardcat Software | D72: Sum | E72: 1 | F72: 0 | G72: =$E72*F72 -> 0.00 | I72: =$F72*H72 -> 0.00 | J72: Not applicable
F73: 0
A74: A16 | C74: Dealing with traffic | D74: Sum | E74: 1 | F74: 0 | G74: =$E74*F74 -> 0.00 | I74: =$F74*H74 -> 0.00 | J74: Agreed to be under time related,
F75: 0
A76: A17 | C76: Any other necessary contractors facilities (please specify) | D76: Sum | E76: 1 | F76: 0 | G76: =$E76*F76 -> 0.00 | I76: =$F76*H76 -> 0.00 | J76: N/A
F77: 0
C78: Tools, plant and equipment | F78: 0
F79: 0
A80: A18 | C80: Tools and equipment (including calibration costs) | D80: Sum | E80: 1 | F80: 0 | G80: =$E80*F80 -> 0.00 | I80: =$F80*H80 -> 0.00 | J80: Agreed, and increased under time related
F81: 0
A82: A19 | C82: Scaffolding | D82: Sum | E82: 1 | F82: 0 | G82: =$E82*F82 -> 0.00 | I82: =$F82*H82 -> 0.00 | J82: Agreed to be kept for transportation (12sites, quarterly)
F83: 0
A84: A20 | C84: Other (please list) | D84: Sum | E84: 1 | F84: 0 | G84: =$E84*F84 -> 0.00 | I84: =$F84*H84 -> 0.00 | J84: N/A
F85: 0
A86: A21 | C86: Scaffolding | D86: Sum | E86: 1 | F86: 0 | G86: =$E86*F86 -> 0.00 | I86: =$F86*H86 -> 0.00 | J86: Not applicable, duplicate
F87: 0
A88: A22 | C88: Other (please list) | D88: Sum | E88: 1 | F88: 0 | G88: =$E88*F88 -> 0.00 | I88: =$F88*H88 -> 0.00 | J88: Not applicable, duplicate
F89: 0
A90: A23 | C90: Dealing with subsurface water | D90: Sum | E90: 1 | F90: 0 | G90: =$E90*F90 -> 0.00 | I90: =$F90*H90 -> 0.00 | J90: Agreed to be kept, and will be paid when it happens. Med-Tech to relook
F91: 0
A92: A24 | C92: Hoists (telehandler, cherry-picker, scissor lifts, etc) | D92: Sum | E92: 1 | F92: 0 | G92: =$E92*F92 -> 0.00 | I92: =$F92*H92 -> 0.00 | J92: N/A
F93: 0
A94: A25 | C94: Other fixed charges (please specify) | D94: Sum | E94: 1 | F94: 0 | G94: =$E94*F94 -> 0.00 | I94: =$F94*H94 -> 0.00 | J94: N/A
F95: 0
C96: Workshop | F96: 0
F97: 0
A98: A26 | C98: Other fixed charges (please specify) | D98: Sum | E98: 1 | F98: 0 | G98: =$E98*F98 -> 0.00 | I98: =$F98*H98 -> 0.00 | J98: Agreed, not applicable
F99: 0
C100: Health and Safety | F100: 0
F101: 0
A102: A27 | C102: General health and Safety obligations | D102: Sum | E102: 1 | F102: 0 | G102: =$E102*F102 -> 0.00 | I102: =$F102*H102 -> 0.00 | J102: N/A
F103: 0
A104: A28 | C104: Risk assessments | D104: Sum | E104: 1 | F104: 0 | G104: =$E104*F104 -> 0.00 | I104: =$F104*H104 -> 0.00 | J104: N/A
F105: 0
A106: A29 | C106: Health and safety files, plans and other | D106: Sum | E106: 1 | F106: 9,765.00 | G106: =$E106*F106 -> 9,765.00 | I106: =$F106*H106 -> 0.00 | J106: Compilation of Site Specific Safety File
F107: 0
A108: A30 | C108: Trainings, inductions, etc | D108: Sum | E108: 1 | F108: 15,624.00 | G108: =$E108*F108 -> 15,624.00 | I108: =$F108*H108 -> 0.00 | J108: H&S Training (i.e. Risk Assessment, Working at Heights, Fire Fighter, First Aider)
F109: 0
A110: A31 | C110: Medical assessment of employees | D110: Sum | E110: 1 | F110: 31,248.00 | G110: =$E110*F110 -> 31,248.00 | I110: =$F110*H110 -> 0.00 | J110: Medical Assessments for entire staff
F111: 0
A112: A32 | C112: Personnel Protective Equipment (PPE) | D112: Sum | E112: 1 | F112: 31,248.00 | G112: =$E112*F112 -> 31,248.00 | I112: =$F112*H112 -> 0.00 | J112: Corporate Uniform
F113: 0
A114: A33 | C114: Dealing with demarcations and barricading | D114: Sum | E114: 1 | F114: 0 | G114: =$E114*F114 -> 0.00 | I114: =$F114*H114 -> 0.00 | J114: N/A
F115: 0
A116: A34 | C116: All other costs to comply with requirements of OHS Act and Health and Safety specification | D116: Sum | E116: 1 | F116: 4,340.00 | G116: =$E116*F116 -> 4,340.00 | I116: =$F116*H116 -> 0.00 | J116: Dealing with unforeseen safety issues
F117: 0
C118: Transport and Traveling (list full details) | F118: 0
F119: 0
A120: A35 | C120: Buckie's | D120: Sum | E120: 1 | F120: 0 | G120: =$E120*F120 -> 0.00 | I120: =$F120*H120 -> 0.00 | J120: N/A
F121: 0
A122: A36 | C122: 1 ton LDV | D122: Sum | E122: 1 | F122: 0 | G122: =$E122*F122 -> 0.00 | I122: =$F122*H122 -> 0.00 | J122: N/A
F123: 0
A124: A37 | C124: 5 ton Truck | D124: Sum | E124: 1 | F124: 0 | G124: =$E124*F124 -> 0.00 | I124: =$F124*H124 -> 0.00 | J124: N/A
F125: 0
A126: A38 | C126: 7 ton Truck | D126: Sum | E126: 1 | F126: 0 | G126: =$E126*F126 -> 0.00 | I126: =$F126*H126 -> 0.00 | J126: N/A
F127: 0
A128: A39 | C128: Tractor & Trailer | D128: Sum | E128: 1 | F128: 0 | G128: =$E128*F128 -> 0.00 | I128: =$F128*H128 -> 0.00 | J128: N/A
F129: 0
A130: A40 | C130: Microbus | D130: Sum | E130: 1 | F130: 0 | G130: =$E130*F130 -> 0.00 | I130: =$F130*H130 -> 0.00 | J130: N/A
F131: 0
A132: A41 | C132: Bus | D132: Sum | E132: 1 | F132: 0 | G132: =$E132*F132 -> 0.00 | I132: =$F132*H132 -> 0.00 | J132: N/A
F133: 0
A134: A42 | C134: Other (please list) | D134: Sum | E134: 1 | F134: 0 | G134: =$E134*F134 -> 0.00 | I134: =$F134*H134 -> 0.00 | J134: N/A
F135: 0
C136: Other Fixed Charge Items | F136: 0
A137: A43 | C137: Other (please list) | D137: Sum | E137: 1 | F137: 0 | G137: =$E137*F137 -> 0.00 | I137: =$F137*H137 -> 0.00 | J137: N/A
F138: 0
A139: A44 | C139: Other (please list) | D139: Sum | E139: 1 | F139: 0 | G139: =$E139*F139 -> 0.00 | I139: =$F139*H139 -> 0.00 | J139: N/A
F140: 0
A141: A45 | C141: Other (please list) | D141: Sum | E141: 1 | F141: 0 | G141: =$E141*F141 -> 0.00 | I141: =$F141*H141 -> 0.00 | J141: N/A
F142: 0
A143: A46 | C143: Other (please list) | D143: Sum | E143: 1 | F143: 0 | G143: =$E143*F143 -> 0.00 | I143: =$F143*H143 -> 0.00 | J143: N/A
F144: 0
F145: 0
F146: 0
F147: 0
F148: 0
F149: 0
F150: 0
F151: 0
F152: 0
F153: 0
F154: 0
F155: 0
F156: 0
F157: 0
F158: 0
F159: 0
F160: 0
F161: 0
F162: 0
F163: 0
F164: 0
F165: 0
F166: 0
F167: 0
F168: 0
F169: 0
F170: 0
F171: 0
F172: 0
F173: 0
F174: 0
F175: 0
F176: 0
F177: 0
F178: 0
F179: 0
F180: 0
A181: TOTAL FOR FIXED P&G's | G181: =SUM(G37:G180) -> 97,650.00 | I181: =SUM(I37:I180) -> 0.00
F182: 0
C183: VALUE-RELATED CHARGE ITEMS | F183: 0
F184: 0
C185: Contractual obligations | F185: 0
F186: 0
A187: A47 | C187: Surety Bond | D187: Sum | E187: 1 | F187: 0 | G187: =$E187*F187 -> 0.00 | I187: =$F187*H187 -> 0.00
F188: 0
A189: A48 | C189: Retention | D189: Sum | E189: 1 | F189: 0 | G189: =$E189*F189 -> 0.00 | I189: =$F189*H189 -> 0.00
F190: 0
A191: A49 | C191: Alternative Retention Bond in lieu of Retention | D191: Sum | E191: 1 | F191: 0 | G191: =$E191*F191 -> 0.00 | I191: =$F191*H191 -> 0.00
F192: 0
A193: A50 | C193: Warranty | D193: Sum | E193: 1 | F193: 0 | G193: =$E193*F193 -> 0.00 | I193: =$F193*H193 -> 0.00
F194: 0
A195: A51 | C195: Taxes, duties, permits | D195: Sum | E195: 1 | F195: 0 | G195: =$E195*F195 -> 0.00 | I195: =$F195*H195 -> 0.00
F196: 0
A197: A52 | C197: Programming | D197: Sum | E197: 1 | F197: 0 | G197: =$E197*F197 -> 0.00 | I197: =$F197*H197 -> 0.00
F198: 0
A199: A53 | C199: Other obligations (please list detail) | D199: Sum | E199: 1 | F199: 0 | G199: =$E199*F199 -> 0.00 | I199: =$F199*H199 -> 0.00
F200: 0
C201: Establishment of facilities on site | F201: 0
F202: 0
C203: Facilities for the Contractor | F203: 0
F204: 0
A205: A54 | C205: Site Offices (provided by the Company) | D205: Sum | E205: 1 | F205: 0 | G205: =$E205*F205 -> 0.00 | I205: =$F205*H205 -> 0.00
F206: 0
A207: A55 | C207: Workshop (space provided by the Company) | D207: Sum | E207: 1 | F207: 0 | G207: =$E207*F207 -> 0.00 | I207: =$F207*H207 -> 0.00
F208: 0
A209: A56 | C209: Ablution facilities (Provided by the Company) | D209: Sum | E209: 1 | F209: 0 | G209: =$E209*F209 -> 0.00 | I209: =$F209*H209 -> 0.00
F210: 0
A211: A57 | C211: Storage facilities (Provided by the Company) | D211: Sum | E211: 1 | F211: 0 | G211: =$E211*F211 -> 0.00 | I211: =$F211*H211 -> 0.00
F212: 0
A213: A58 | C213: Water supply (Provided by the Company) | D213: Sum | E213: 1 | F213: 0 | G213: =$E213*F213 -> 0.00 | I213: =$F213*H213 -> 0.00
F214: 0
A215: A59 | C215: Electrical supply (provided by the Company) | D215: Sum | E215: 1 | F215: 0 | G215: =$E215*F215 -> 0.00 | I215: =$F215*H215 -> 0.00
F216: 0
A217: A60 | C217: Communications (Office Telephones, email domain, desk and laptops provided by the Company, excluding mobile devices) | D217: Sum | E217: 1 | F217: 0 | G217: =$E217*F217 -> 0.00 | I217: =$F217*H217 -> 0.00
... 338 more rows

Sheet Section C - Contingency
I1: ='Section A - P&G''s'!I1 -> GENERAL BUILDING & ELECTRICAL WORKS MAINTENANCE IN GORT VARIOUS SITE
I2: ='Section A - P&G''s'!I2 -> BOQ
I3: ='Section A - P&G''s'!I3 -> COC, CSCs, SCs AND DALPARK
A5: SECTION C - CONTINGENCIES
A7: ITEM No. | B7: PAYMENT CLAUSE | C7: DESCRIPTION | D7: UNIT | E7: QUANTITY | F7: CONTRACT SUM | H7: TOTAL TO DATE | J7: COMMENTS
F8: RATE | G8: AMOUNT R c | H8: QUANTITY | I8: AMOUNT R c
C9: SECTION C
C10: CONTINGENCY
C12: BILL No. 1
C13: BUILDING & ELECTRICAL WORK
C15: Payment Clause:
C17: PC-ALT101: Any work which exceeds R2000.00 when valued using the Bill of Quantity task rates shall be paid as per the Bill of Quantity task rates.
C19: PC-ALT102 :Any work that does not exceed R2000.00 when valued using Bill of Quantity task rates shall be valued and paid as per daywork rates for labour and material costs shall be withdrawn from the budgetary allowances plus contractor's mark-up.
C21: PC-ALT103: Any work that is not specified in any section of this Bill of Quantities shall be paid on agreed rates of the work of similar nature to what exists in this Bill of Quantities. Where there is not work of similar nature, the Service Provider shall submit the invoice for material and time sheet for labour indicating the duration for which the task was executed. The Service Provider shall be entitled to mark-up as indicated in this Bill of Quantities.
C23: N/a
C30: Add mark-up on the above | F30: 12% | I30: 0
A69: TOTAL FOR CONTINGENCIES | F69: R | G69: =SUM(G25:G68) -> 0.00 | H69: R | I69: =SUM(I25:I68) -> 0.00

Sheet Section B - Building&Elec Works
I1: ='Section A - P&G''s'!I1 -> GENERAL BUILDING & ELECTRICAL WORKS MAINTENANCE IN GORT VARIOUS SITE
I2: ='Section A - P&G''s'!I2 -> BOQ
I3: ='Section A - P&G''s'!I3 -> COC, CSCs, SCs AND DALPARK
A5: SECTION B - BUILDING AND ELECTRICAL WORKS
A7: ITEM No. | B7: PAYMENT CLAUSE | C7: DESCRIPTION | D7: UNIT | E7: QUANTITY | F7: CONTRACT SUM | H7: TOTAL TO DATE | J7: COMMENTS | L7: Date | M7: Ticket no. | N7: Site | O7: Site Name | P7: Overtime Y/N | Q7: Calender Week | R7: Material Used | S7: KM | T7: Labour | U7: Hours
F8: RATE | G8: AMOUNT R c | H8: QUANTITY | I8: AMOUNT R c
C9: SECTION B
C10: BUILDING AND ELECTRICAL WORKS
C12: BILL No. 1
C13: ALTERATIONS
C15: For Preambles, see "Model Preambles for Trades (2008 Edition) and Supplementary Preambles as specified in the Trades.
C17: Before submitting his tender the Service Provider shall visit the site and satisfy himself as to the nature and extent of the work to be done and the value of the materials contained in the buildings or portions of the buildings to be demolished. No claim for any variations of the contract sum in respect of the nature and extent of the work or of inferior or damaged materials will be entertained
C19: Explosives
C21: No explosives whatsoever may be used for demolition purposes unless otherwise stated
C23: General
C25: Water supply pipes and other piping in ground that may be encountered and found necessary to disconnect or cut, shall be effectually stopped off or grubbed up and removed, and any new connections that may be necessary shall be made with proper fittings to the satisfaction of the principal agent
C27: Unless otherwise described all materials are to become the property of the contractor and are to be removed from the site
C29: Payment Clause:
C31: PC-ALT101: Any work which exceeds R2000.00 when valued using the Bill of Quantity task rates shall be paid as per the Bill of Quantity task rates.
C33: PC-ALT102 :Any work that does not exceed R2000.00 when valued using Bill of Quantity task rates shall be valued and paid as per daywork rates for labour and material costs shall be withdrawn from the budgetary allowances plus contractor's mark-up.
C35: PC-ALT103: Any work that is not specified in any section of this Bill of Quantities shall be paid on agreed rates of the work of similar nature to what exists in this Bill of Quantities. Where there is not work of similar nature, the Service Provider shall submit the invoice for material and time sheet for labour indicating the duration for which the task was executed. The Service Provider shall be entitled to mark-up as indicated in this Bill of Quantities.
C38: Breaking down and removing brickwork etc
A40: B1.1. | B40: PC-ALT101 | C40: Mass brickwork | D40: m3 | E40: 1 | F40: 242.16 | G40: =$E40*F40 -> 242.16 | I40: =$F40*H40 -> 0.00
F41: 0
A42: B1.2. | B42: PC-ALT101 | C42: Half brick walls | D42: m2 | E42: 1 | F42: 105.54 | G42: =$E42*F42 -> 105.54 | I42: =$F42*H42 -> 0.00
F43: 0
A44: B1.3. | B44: PC-ALT101 | C44: One brick walls | D44: m2 | E44: 1 | F44: 180.06 | G44: =$E44*F44 -> 180.06 | I44: =$F44*H44 -> 0.00
F45: 0
A46: B1.3. | B46: PC-ALT101 | C46: 330mm Hollow walls of two half brick skins | D46: m2 | E46: 1 | F46: 180.06 | G46: =$E46*F46 -> 180.06 | I46: =$F46*H46 -> 0.00
F47: 0
C48: Taking out and removing doors, windows, etc from brickwork | F48: 0
F49: 0
C50: Taking out and removing doors, windows, etc, including thresholds, sills, etc (building up openings and making good finishes elsewhere) | F50: 0
F51: 0
A52: B1.4. | B52: PC-ALT101 | C52: Timber single door and frame not exceeding 2,5m² | D52: No | E52: 1 | F52: 120.79 | G52: =$E52*F52 -> 120.79 | I52: =$F52*H52 -> 0.00
F53: 0
A54: B1.5. | B54: PC-ALT101 | C54: Timber double door and frame exceeding 2,5m² and not exceeding 5m² | D54: No | E54: 1 | F54: 243.22 | G54: =$E54*F54 -> 243.22 | I54: =$F54*H54 -> 0.00
F55: 0
A56: B1.6. | B56: PC-ALT101 | C56: Timber single door and steel frame not exceeding 2,5m² | D56: No | E56: 1 | F56: 145.28 | G56: =$E56*F56 -> 145.28 | I56: =$F56*H56 -> 0.00
F57: 0
A58: B1.7. | B58: PC-ALT101 | C58: Timber double door and steel frame exceeding 2,5m² and not exceeding 5m² | D58: No | E58: 1 | F58: 290.56 | G58: =$E58*F58 -> 290.56 | I58: =$F58*H58 -> 0.00
F59: 0
A60: B1.8. | B60: PC-ALT101 | C60: Glazed aluminium window not exceeding 2,5m² | D60: No | E60: 1 | F60: 145.28 | G60: =$E60*F60 -> 145.28 | I60: =$F60*H60 -> 0.00
F61: 0
A62: B1.9. | B62: PC-ALT101 | C62: Glazed aluminium window exceeding 2,5m² and not exceeding 5m² | D62: No | E62: 1 | F62: 290.56 | G62: =$E62*F62 -> 290.56 | I62: =$F62*H62 -> 0.00
F63: 0
A64: B1.10. | B64: PC-ALT101 | C64: Glazed aluminium window exceeding 5m² and not exceeding 7.5m² | D64: No | E64: 1 | F64: 431.61 | G64: =$E64*F64 -> 431.61 | I64: =$F64*H64 -> 0.00
F65: 0
C66: Taking down and removing roofs, floors, panelling, ceilings, partitions, etc | F66: 0
F67: 0
A68: B1.11 | B68: PC-ALT101 | C68: Corrugated sheet steel roof covering and timber purlins | D68: m2 | E68: 1 | F68: 21.23 | G68: =$E68*F68 -> 21.23 | I68: =$F68*H68 -> 0.00
F69: 0
A70: B1.12. | B70: PC-ALT101 | C70: Gypsum plasterboard ceilings, including timber brandering, cornices, etc | D70: m2 | E70: 1 | F70: 21.23 | G70: =$E70*F70 -> 21.23 | I70: =$F70*H70 -> 0.00
F72: 0
A73: B1.13. | B73: PC-ALT101 | C73: Flush plastered gypsum plasterboard suspended ceilings, including suspension grid, hangers, cornices, etc | D73: m2 | E73: 1 | F73: 26.13 | G73: =$E73*F73 -> 26.13 | I73: =$F73*H73 -> 0.00
F74: 0
A75: B1.14. | B75: PC-ALT101 | C75: Acoustic tile suspended ceilings, including suspension grid, hangers, cornices, etc | D75: m2 | E75: 1 | F75: 21.23 | G75: =$E75*F75 -> 21.23 | I75: =$F75*H75 -> 0.00
F76: 0
A77: B1.15. | B77: PC-ALT101 | C77: Drywall partitions exceeding 1.5m and not exceeding 5m high, including doors, glazed borrowed lights, etc | D77: m | E77: 1 | F77: 58.76 | G77: =$E77*F77 -> 58.76 | I77: =$F77*H77 -> 0.00
F78: 0
C79: Taking up and removing wood block floor coverings, vinyl floor coverings, carpets, etc and preparing screeds for new floor coverings | F79: 0
F80: 0
A81: B1.16. | B81: PC-ALT101 | C81: Wood block floor covering | D81: m2 | E81: 1 | F81: 21.23 | G81: =$E81*F81 -> 21.23 | I81: =$F81*H81 -> 0.00
F82: 0
A83: B1.17. | B83: PC-ALT101 | C83: Vinyl tile floor covering | D83: m2 | E83: 1 | F83: 13.06 | G83: =$E83*F83 -> 13.06 | I83: =$F83*H83 -> 0.00
F84: 0
A85: B1.18. | B85: PC-ALT101 | C85: Vinyl sheet floor covering with welded joints | D85: m2 | E85: 1 | F85: 13.06 | G85: =$E85*F85 -> 13.06 | I85: =$F85*H85 -> 0.00
F86: 0
A87: B1.19. | B87: PC-ALT101 | C87: Carpet tile floor covering | D87: m2 | E87: 1 | F87: 13.06 | G87: =$E87*F87 -> 13.06 | I87: =$F87*H87 -> 0.00
F88: 0
C89: Taking out and removing ironmongery | F89: 0
F90: 0
A91: B1.20. | B91: PC-ALT101 | C91: Mortice lockset from timber door | D91: No | E91: 1 | F91: 6.53 | G91: =$E91*F91 -> 6.53 | I91: =$F91*H91 -> 0.00
F92: 0
A93: B1.21. | B93: PC-ALT101 | C93: Door closer from timber door and frame | D93: No | E93: 1 | F93: 27.74 | G93: =$E93*F93 -> 27.74 | I93: =$F93*H93 -> 0.00
F94: 0
A95: B1.22. | B95: PC-ALT101 | C95: Towel rail not exceeding 2mm long from wall | D95: No | E95: 1 | F95: 6.53 | G95: =$E95*F95 -> 6.53 | I95: =$F95*H95 -> 0.00
F96: 0
A97: B1.23. | B97: PC-ALT101 | C97: Toilet paper holder from wall | D97: No | E97: 1 | F97: 6.53 | G97: =$E97*F97 -> 6.53 | I97: =$F97*H97 -> 0.00
F98: 0
A99: B1.24. | B99: PC-ALT101 | C99: Hat and coat hook from wall | D99: No | E99: 1 | F99: 6.53 | G99: =$E99*F99 -> 6.53 | I99: =$F99*H99 -> 0.00
F100: 0
A101: B1.25. | B101: PC-ALT101 | C101: Taking out/off and removing sundry metalwork | D101: No | E101: 1 | F101: 137.66 | G101: =$E101*F101 -> 137.66 | I101: =$F101*H101 -> 0.00
F102: 0
C103: Hacking up/off and removing ceramic tiles including removing mortar bed or adhesive from concrete or brickwork and preparing surfaces for new screed, plaster, tile finish, etc | F103: 0
F104: 0
A105: B1.26. | B105: PC-ALT101 | C105: Tiles to floors | D105: m2 | E105: 1 | F105: 26.13 | G105: =$E105*F105 -> 26.13 | I105: =$F105*H105 -> 0.00
F106: 0
A107: B1.27. | B107: PC-ALT101 | C107: Tiles to treads and risers of stairs | D107: m2 | E107: 1 | F107: 27.74 | G107: =$E107*F107 -> 27.74 | I107: =$F107*H107 -> 0.00
F108: 0
A109: B1.28. | B109: PC-ALT101 | C109: Tiles to walls | D109: m2 | E109: 1 | F109: 27.74 | G109: =$E109*F109 -> 27.74 | I109: =$F109*H109 -> 0.00
F110: 0
A111: B1.29. | B111: PC-ALT101 | C111: Tile skirtings 100-150mm high | D111: m | E111: 1 | F111: 17.96 | G111: =$E111*F111 -> 17.96 | I111: =$F111*H111 -> 0.00
F112: 0
C113: Taking out and removing sanitary fittings, tanks, geysers, etc, including disconnecting from pipes, traps, etc and making good floor and wall finishes (making good tiling and paintwork elsewhere) | F113: 0
F114: 0
A115: B1.30. | B115: PC-ALT101 | C115: Stainless steel sink and drainer from timber cupboard | D115: No | E115: 1 | F115: 206.15 | G115: =$E115*F115 -> 206.15 | I115: =$F115*H115 -> 0.00
F116: 0
A117: B1.31. | B117: PC-ALT101 | C117: Vitreous china wash hand basin | D117: No | E117: 1 | F117: 379.75 | G117: =$E117*F117 -> 379.75 | I117: =$F117*H117 -> 0.00
F118: 0
A119: B1.32. | B119: PC-ALT101 | C119: Vitreous china WC pan with cistern and flush pipe | D119: No | E119: 1 | F119: 217.00 | G119: =$E119*F119 -> 217.00 | I119: =$F119*H119 -> 0.00
F120: 0
A121: B1.33. | B121: PC-ALT101 | C121: Vitreous china WC pan with flush valve and flush pipe | D121: No | E121: 1 | F121: 379.75 | G121: =$E121*F121 -> 379.75 | I121: =$F121*H121 -> 0.00
F122: 0
A123: B1.34. | B123: PC-ALT101 | C123: Vitreous china wall hung urinal with flush valve and flush pipe | D123: No | E123: 1 | F123: 325.50 | G123: =$E123*F123 -> 325.50 | I123: =$F123*H123 -> 0.00
F124: 0
C125: Taking out/off and removing glass and mirrors | F125: 0
F126: 0
A127: B1.35. | B127: PC-ALT101 | C127: Glass from aluminium windows with beads, including cleaning out rebates and preparing for new glass | D127: m2 | E127: 1 | F127: 13.06 | G127: =$E127*F127 -> 13.06 | I127: =$F127*H127 -> 0.00
F128: 0
A129: B1.36. | B129: PC-ALT101 | C129: Glass from steel windows, including cleaning out rebates and preparing for new glass | D129: m2 | E129: 1 | F129: 13.06 | G129: =$E129*F129 -> 13.06 | I129: =$F129*H129 -> 0.00
F130: 0
A131: B1.37. | B131: PC-ALT101 | C131: Mirror 600 x 900mm high from wall | D131: No | E131: 1 | F131: 26.13 | G131: =$E131*F131 -> 26.13 | I131: =$F131*H131 -> 0.00
F132: 0
C133: Dayworks for work that is equal to or less than R2000.00 | F133: 0
F134: 0
A135: B1.38. | B135: PC-ALT102 | C135: Skilled labour | D135: Hrs | E135: 1 | F135: 97.47 | G135: =$E135*F135 -> 97.47 | I135: =$F135*H135 -> 0.00
F136: 0
A137: B1.39. | B137: PC-ALT102 | C137: Semi-skilled labour | D137: Hrs | E137: 1 | F137: 71.00 | G137: =$E137*F137 -> 71.00 | I137: =$F137*H137 -> 0.00
F138: 0
A139: B1.40. | B139: PC-ALT102 | C139: Unskilled labour | D139: Hrs | E139: 1 | F139: 33.28 | G139: =$E139*F139 -> 33.28 | I139: =$F139*H139 -> 0.00
C142: Budgetary allowances
A144: B1.41. | B144: PC-ALT103 | C144: Allow for a budgetary amount of R100 000.00 (Hundred Thousand Rands Only) for above building works | D144: Sum | E144: 1 | F144: 100,000.00 | G144: =$E144*F144 -> 100,000.00 | I144: =H144 -> 0.00
A146: B1.42. | B146: PC-ALT103 | C146: Allow for profit and overheads on the above | D146: % | E146: 0% | F146: 12% | G146: =F146*G144 -> 12,000.00 | I146: =$F146*H146 -> 0.00
C150: TOTAL FOR ALTERATIONS | G150: =SUM(G9:G149) -> 116,637.40 | I150: =SUM(I9:I149) -> 0.00
C152: BILL No. 2
C153: WATERPROOFING
C155: For Preambles, see "Model Preambles for Trades (2008 Edition) and Supplementary Preambles as specified in the Trades.
C158: Before submitting his tender the Service Provider shall visit the site and satisfy himself as to the nature and extent of the work to be done and the value of the materials contained in the buildings or portions of the buildings to be demolished. No claim for any variations of the contract sum in respect of the nature and extent of the work or of inferior or damaged materials will be entertained
C160: Waterproofing
C162: Waterproofing of roofs, basements, etc shall be laid under a ten year guarantee. Waterproofing to roofs shall be laid to even falls to outlets etc with necessary ridges, hips and valleys. Descriptions of sheet or membrane waterproofing shall be deemed to include additional labour to turn-ups and turn-downs
C166: Payment Clause:
C168: PC-ALT101: Any work which exceeds R2000.00 when valued using the Bill of Quantity task rates shall be paid as per the Bill of Quantity task rates.
C170: PC-ALT102 :Any work that does not exceed R2000.00 when valued using Bill of Quantity task rates shall be valued and paid as per daywork rates for labour and material costs shall be withdrawn from the budgetary allowances plus contractor's mark-up.
C172: PC-ALT103: Any work that is not specified in any section of this Bill of Quantities shall be paid on agreed rates of the work of similar nature to what exists in this Bill of Quantities. Where there is not work of similar nature, the Service Provider shall submit the invoice for material and time sheet for labour indicating the duration for which the task was executed. The Service Provider shall be entitled to mark-up as indicated in this Bill of Quantities.
C174: WATERPROOFING TO ROOFS, BASEMENTS, ETC
C176: One layer "Debigum SP4" waterproofing membrane, with 75mm side and 100mm end laps, torch-fusion sealed to and including bitumen primed surfaces to
A178: B2.1. | B178: PC-ALT101 | C178: Flat roofs | D178: m2 | E178: 1 | F178: 502.08 | I178: =$F178*H178 -> 0.00
F179: 0
A180: B2.2. | B180: PC-ALT101 | C180: Flat roofs in patches | D180: m2 | F180: 502.08 | G180: =$E180*F180 -> 0.00 | H180: 0.00 | I180: =$F180*H180 -> 0.00
F181: 0
C182: Two coats aluminium paint to | F182: 0
F183: 0
A184: B2.3. | B184: PC-ALT101 | C184: Flat roofs | D184: m2 | E184: 1 | F184: 68.46 | G184: =$E184*F184 -> 68.46 | I184: =$F184*H184 -> 0.00
F185: 0
C186: SEALING STRIPS, JOINT SEALANTS, ETC | F186: 0
F187: 0
C188: Two-part coloured polysulphide sealing compound including backing cord, bond breaker, primer, etc. to match existing | F188: 0
F189: 0
A190: B2.4. | B190: PC-ALT101 | C190: 10 x 10mm In vertical expansion joints including raking out expansion joint filler as necessary | D190: m | E190: 1 | F190: 109.03 | G190: =$E190*F190 -> 109.03 | I190: =$F190*H190 -> 0.00
F191: 0
A192: B2.5. | B192: PC-ALT101 | C192: Ditto but 12mm wide joints | D192: m | E192: 1 | F192: 109.03 | G192: =$E192*F192 -> 109.03 | I192: =$F192*H192 -> 0.00
F193: 0
C194: Dayworks for work that is equal to or less than R2000.00 | F194: 0
F195: 0
A196: B2.6. | B196: PC-ALT102 | C196: Skilled labour | D196: Hrs | E196: 1 | F196: 97.47 | G196: =$E196*F196 -> 97.47 | I196: =$F196*H196 -> 0.00
F197: 0
A198: B2.7. | B198: PC-ALT102 | C198: Semi-skilled labour | D198: Hrs | E198: 1 | F198: 71.00 | G198: =$E198*F198 -> 71.00 | I198: =$F198*H198 -> 0.00
F199: 0
A200: B2.8. | B200: PC-ALT102 | C200: Unskilled labour | D200: Hrs | E200: 1 | F200: 33.28 | G200: =$E200*F200 -> 33.28 | I200: =$F200*H200 -> 0.00
C202: Budgetary allowances
A204: B2.9. | B204: PC-ALT103 | C204: Allow for a budgetary amount of R20 000.00 (Twenty Thousand Rands Only) for above building works | D204: Sum | E204: 1 | F204: 20,000.00 | G204: =$E204*F204 -> 20,000.00 | I204: =H204 -> 0.00
A206: B2.10. | B206: PC-ALT103 | C206: Allow for profit and overheads on the above | D206: % | E206: 0% | F206: 12% | G206: =F206*G204 -> 2,400.00 | I206: =$F206*H206 -> 0.00
C210: TOTAL FOR WATERPROOFING | G210: =SUM(G152:G209) -> 22,888.27 | I210: =SUM(I152:I209) -> 0.00
C212: BILL No. 3
C213: ROOF COVERINGS
C215: For Preambles, see "Model Preambles for Trades (2008 Edition) and Supplementary Preambles as specified in the Trades.
C218: Before submitting his tender the bidder shall visit the site and satisfy himself as to the nature and extent of the work to be done and the value of the materials contained in the buildings or portions of the buildings to be demolished. No claim for any variations of the contract sum in respect of the nature and extent of the work or of inferior or damaged materials will be entertained
C220: Payment Clause:
C222: PC-ALT101: Any work which exceeds R2000.00 when valued using the Bill of Quantity task rates shall be paid as per the Bill of Quantity task rates.
C224: PC-ALT102 :Any work that does not exceed R2000.00 when valued using Bill of Quantity task rates shall be valued and paid as per daywork rates for labour and material costs shall be withdrawn from the budgetary allowances plus contractor's mark-up.
C226: PC-ALT103: Any work that is not specified in any section of this Bill of Quantities shall be paid on agreed rates of the work of similar nature to what exists in this Bill of Quantities. Where there is not work of similar nature, the Service Provider shall submit the invoice for material and time sheet for labour indicating the duration for which the task was executed. The Service Provider shall be entitled to mark-up as indicated in this Bill of Quantities.
C228: PROFILED METAL SHEETING AND ACCESSORIES
C230: Klip-lok Chromadek profile sheeting screwed to steel or timber purlins in
A232: B3.1. | B232: PC-ALT101 | C232: Roof covering with pitches not exceeding 25 degrees | D232: m2 | E232: 1 | F232: 458.69 | G232: =$E232*F232 -> 458.69 | I232: =$F232*H232 -> 0.00
F233: 0
A234: B3.2. | B234: PC-ALT101 | C234: Side cladding | D234: m2 | E234: 1 | F234: 468.50 | G234: =$E234*F234 -> 468.50 | I234: =$F234*H234 -> 0.00
F235: 0
A236: B3.3. | B236: PC-ALT101 | C236: Soffit cladding | D236: m2 | E236: 1 | F236: 468.50 | G236: =$E236*F236 -> 468.50 | I236: =$F236*H236 -> 0.00
F237: 0
A238: B3.4. | B238: PC-ALT101 | C238: Roof covering and side cladding to dormers, turrets, etc | D238: m2 | E238: 1 | F238: 486.45 | G238: =$E238*F238 -> 486.45 | I238: =$F238*H238 -> 0.00
F239: 0
A240: B3.5. | B240: PC-ALT101 | C240: Circular cutting | D240: m | E240: 1 | F240: 8.17 | G240: =$E240*F240 -> 8.17 | I240: =$F240*H240 -> 0.00
F241: 0
C242: ROOF INSULATION, ETC | F242: 0
F243: 0
A244: B3.6. | B244: PC-ALT101 | C244: 75mm Non-combustible factorylite roof insulation with metalized foil fixed concurrent with roof sheeting including tightening the stringers | D244: m | E244: 1 | F244: 40.81 | G244: =$E244*F244 -> 40.81 | I244: =$F244*H244 -> 0.00
F245: 0
F246: 0
C247: Dayworks for work that is equal to or less than R2000.00 | F247: 0
F248: 0
A249: B3.7. | B249: PC-ALT102 | C249: Skilled labour | D249: Hrs | E249: 1 | F249: 97.47 | G249: =$E249*F249 -> 97.47 | I249: =$F249*H249 -> 0.00
F251: 0
A252: B3.8. | B252: PC-ALT102 | C252: Semi-skilled labour | D252: Hrs | E252: 1 | F252: 71.00 | G252: =$E252*F252 -> 71.00 | I252: =$F252*H252 -> 0.00
F253: 0
A254: B3.9. | B254: PC-ALT102 | C254: Unskilled labour | D254: Hrs | E254: 1 | F254: 33.28 | G254: =$E254*F254 -> 33.28 | I254: =$F254*H254 -> 0.00
C256: Budgetary allowances
A258: B3.10. | B258: PC-ALT103 | C258: Allow for a budgetary amount of R50 000.00 (Fifty Thousand Rands Only) for above building works | D258: Sum | E258: 1 | F258: 50,000.00 | G258: =$E258*F258 -> 50,000.00 | I258: =H258 -> 0.00
A260: B3.11. | B260: PC-ALT103 | C260: Allow for profit and overheads on the above | D260: % | E260: 0% | F260: 12% | G260: =F260*G258 -> 6,000.00 | I260: =$F260*H260 -> 0.00
C264: TOTAL FOR ROOF COVERINGS | G264: =SUM(G230:G263) -> 58,132.87 | I264: =SUM(I230:I263) -> 0.00
... 737 more rows
